fUSD/lending_fUSD_20250616
["ID","MTS","AMOUNT","RATE_DAILY","PERIOD"]
[366154530,1750090239099,-490.0,0.0001616,2]
[366154532,1750090239109,-490.0,0.0001616,2]
[366154534,1750090239119,-490.0,0.0001616,2]
[366154536,1750090239130,-490.0,0.0001616,2]
[366154538,1750090239140,-1467.36,0.0001616,2]
[366154550,1750090239255,-490.0,0.0001616,2]
[366154552,1750090239268,-490.0,0.0001616,2]
[366154554,1750090239278,-1068.95,0.0001616,2]
[366154556,1750090239288,-490.0,0.0001616,2]
[366154558,1750090239298,-490.0,0.0001616,2]
[366154560,1750090239308,-490.0,0.0001616,2]
[366154562,1750090239318,-490.0,0.0001616,2]
[366154564,1750090239328,-490.0,0.0001616,2]
[366154566,1750090239337,-722.64,0.0001616,2]
[366154568,1750090239347,-490.0,0.0001616,2]
[366154570,1750090239356,-490.0,0.0001616,2]
[366154572,1750090239366,-490.0,0.0001616,2]
[366154574,1750090239375,-1664.73,0.0001616,2]
[366154576,1750090239385,-490.0,0.0001616,2]
[366154578,1750090239395,-490.0,0.0001616,2]
[366154580,1750090239404,-490.0,0.0001616,2]
[366154583,1750090239414,-833.31,0.0001616,2]
[366154585,1750090239423,-490.0,0.0001616,2]
[366154586,1750090239432,-490.0,0.0001616,2]
[366154589,1750090239442,-490.0,0.0001616,2]
[366154591,1750090239452,-490.0,0.0001616,2]
[366154593,1750090239462,-1474.5,0.0001616,2]
[366154595,1750090239472,-568.28,0.0001616,2]
[366154597,1750090239481,-846.89,0.0001616,2]
[366154599,1750090239491,-492.97445641,0.0001616,2]
[366154601,1750090239501,-902.48,0.0001616,2]
[366154603,1750090239510,-962.8,0.0001616,2]
[366154605,1750090239520,-490.0,0.0001616,2]
[366154607,1750090239530,-490.0,0.0001616,2]
[366154609,1750090239539,-430.0,0.0001616,2]
[366154611,1750090239548,-490.0,0.0001616,2]
[366154613,1750090239558,-1357.98,0.0001616,2]
[366154615,1750090239568,-1217.84,0.0001616,2]
[366154617,1750090239577,-490.0,0.0001616,2]
[366154619,1750090239586,-490.0,0.0001616,2]
[366154620,1750090239596,-490.0,0.0001616,2]
[366154622,1750090239607,-490.0,0.0001616,2]
[366154625,1750090239616,-490.0,0.0001616,2]
[366154627,1750090239626,-490.0,0.0001616,2]
[366154629,1750090239635,-490.0,0.0001616,2]
[366154631,1750090239644,-490.0,0.0001616,2]
[366154632,1750090239654,-490.0,0.0001616,2]
[366154635,1750090239663,-490.0,0.0001616,2]
[366154636,1750090239672,-490.0,0.0001616,2]
[366154639,1750090239682,-504.93,0.0001616,2]
[366154641,1750090239691,-904.02,0.0001616,2]
[366154643,1750090239701,-490.0,0.0001616,2]
[366154645,1750090239711,-490.0,0.0001616,2]
[366154647,1750090239720,-490.0,0.0001616,2]
[366154649,1750090239730,-490.0,0.0001616,2]
[366154651,1750090239739,-490.0,0.0001616,2]
[366154653,1750090239749,-490.0,0.0001616,2]
[366154655,1750090239759,-1222.28,0.0001616,2]
[366154657,1750090239771,-490.0,0.0001616,2]
[366154659,1750090239781,-830.25,0.0001616,2]
[366154661,1750090239792,-490.0,0.0001616,2]
[366154663,1750090239802,-490.0,0.0001616,2]
[366154665,1750090239812,-490.0,0.0001616,2]
[366154667,1750090239822,-490.0,0.0001616,2]
[366154669,1750090239832,-1476.5,0.0001616,2]
[366154671,1750090239841,-1187.61,0.0001616,2]
[366154673,1750090239850,-490.0,0.0001616,2]
[366154675,1750090239864,-490.0,0.0001616,2]
[366154677,1750090239874,-490.0,0.0001616,2]
[366154679,1750090239883,-490.0,0.0001616,2]
[366154681,1750090239893,-1227.1,0.0001616,2]
[366154684,1750090239903,-490.0,0.0001616,2]
[366154685,1750090239912,-490.0,0.0001616,2]
[366154687,1750090239922,-1764.24,0.0001616,2]
[366154689,1750090239931,-648.55,0.0001616,2]
[366154691,1750090239941,-490.0,0.0001616,2]
[366154693,1750090239951,-490.0,0.0001616,2]
[366154695,1750090239960,-595.46,0.0001616,2]
[366154697,1750090239970,-490.0,0.0001616,2]
[366154700,1750090239980,-490.0,0.0001616,2]
[366154701,1750090239990,-490.0,0.0001616,2]
[366154704,1750090239999,-1836.45,0.0001616,2]
[366154706,1750090240009,-490.0,0.0001616,2]
[366154707,1750090240020,-490.0,0.0001616,2]
[366154709,1750090240031,-622.97,0.0001616,2]
[366154713,1750090240041,-201.79,0.0001616,2]
[366154715,1750090240050,-490.0,0.0001616,2]
[366154716,1750090240060,-490.0,0.0001616,2]
[366154719,1750090240070,-490.0,0.0001616,2]
[366154721,1750090240079,-490.0,0.0001616,2]
[366154723,1750090240089,-490.0,0.0001616,2]
[366154724,1750090240099,-764.04,0.0001616,2]
[366154726,1750090240109,-490.0,0.0001616,2]
[366154729,1750090240119,-2217.4,0.0001616,2]
[366154731,1750090240129,-490.0,0.0001616,2]
[366154733,1750090240139,-391.08623183,0.0001616,2]
[366154735,1750090240153,-490.0,0.0001616,2]
[366154737,1750090240163,-490.0,0.0001616,2]
[366154739,1750090240175,-490.0,0.0001616,2]
[366154741,1750090240186,-490.0,0.0001616,2]
[366154743,1750090240196,-681.98,0.0001616,2]
[366154745,1750090240205,-701.85,0.0001616,2]
[366154747,1750090240215,-961.65,0.0001616,2]
[366154749,1750090240226,-490.0,0.0001616,2]
[366154751,1750090240236,-490.0,0.0001616,2]
[366154753,1750090240246,-490.0,0.0001616,2]
[366154755,1750090240256,-490.0,0.0001616,2]
[366154757,1750090240267,-490.0,0.0001616,2]
[366154759,1750090240277,-490.0,0.0001616,2]
[366154761,1750090240286,-521.51,0.0001616,2]
[366154763,1750090240296,-1728.93,0.0001616,2]
[366154765,1750090240305,-724.59,0.0001616,2]
[366154767,1750090240315,-490.0,0.0001616,2]
[366154769,1750090240324,-490.0,0.0001616,2]
[366154771,1750090240333,-812.51,0.0001616,2]
[366154773,1750090240343,-490.0,0.0001616,2]
[366154775,1750090240353,-490.0,0.0001616,2]
[366154777,1750090240362,-648.04,0.0001616,2]
[366154779,1750090240372,-795.74,0.0001616,2]
[366154781,1750090240382,-550.06,0.0001616,2]
[366154782,1750090240392,-490.0,0.0001616,2]
[366154784,1750090240401,-649.5,0.0001616,2]
[366154787,1750090240412,-490.0,0.0001616,2]
[366154789,1750090240423,-490.0,0.0001616,2]
[366154791,1750090240432,-2394.04,0.0001616,2]
[366154793,1750090240442,-490.0,0.0001616,2]
[366154795,1750090240452,-490.0,0.0001616,2]
[366154797,1750090240461,-490.0,0.0001616,2]
[366154799,1750090240471,-2171.12,0.0001616,2]
[366154801,1750090240480,-490.0,0.0001616,2]
[366154802,1750090240490,-490.0,0.0001616,2]
[366154805,1750090240499,-490.0,0.0001616,2]
[366154806,1750090240509,-490.0,0.0001616,2]
[366154808,1750090240518,-490.0,0.0001616,2]
[366154811,1750090240528,-490.0,0.0001616,2]
[366154813,1750090240538,-845.31,0.0001616,2]
[366154815,1750090240548,-490.0,0.0001616,2]
[366154817,1750090240558,-490.0,0.0001616,2]
[366154819,1750090240569,-4407.04,0.0001616,2]
[366154821,1750090240578,-490.0,0.0001616,2]
[366154823,1750090240589,-1072.04,0.0001616,2]
[366154825,1750090240599,-682.51,0.0001616,2]
[366154827,1750090240608,-516.66,0.0001616,2]
[366154829,1750090240618,-1445.33645818,0.0001616,2]
[366154835,1750090240671,-606.37717484,0.0001616,2]
[366154939,1750090241897,-1000.0,0.00016059,2]
[366154941,1750090241908,-162.094425,0.00016158,2]
[366154943,1750090241918,-521.87,0.00016158,2]
[366154945,1750090241928,-490.0,0.00016159,2]
[366154947,1750090241938,-171.35636698,0.0001616,2]
[366154950,1750090241948,-490.0,0.0001616,2]
[366154952,1750090241958,-954.89,0.0001616,2]
[366154954,1750090241968,-496.89,0.0001616,2]
[366154956,1750090241978,-490.0,0.0001616,2]
[366154958,1750090241987,-1735.66,0.0001616,2]
[366154960,1750090241998,-490.0,0.0001616,2]
[366154962,1750090242008,-2156.01,0.0001616,2]
[366154964,1750090242018,-1631.55,0.0001616,2]
[366154966,1750090242028,-490.0,0.0001616,2]
[366154968,1750090242038,-490.0,0.0001616,2]
[366154970,1750090242048,-490.0,0.0001616,2]
[366154972,1750090242058,-490.0,0.0001616,2]
[366154973,1750090242068,-490.0,0.0001616,2]
[366154974,1750090242078,-797.6,0.0001616,2]
[366154975,1750090242087,-490.0,0.0001616,2]
[366154976,1750090242098,-490.0,0.0001616,2]
[366154977,1750090242108,-490.0,0.0001616,2]
[366154978,1750090242118,-1361.89,0.0001616,2]
[366154979,1750090242128,-490.0,0.0001616,2]
[366154980,1750090242138,-2600.44,0.0001616,2]
[366154981,1750090242151,-490.0,0.0001616,2]
[366154982,1750090242161,-518.23,0.0001616,2]
[366154984,1750090242171,-6299.02,0.0001616,2]
[366154986,1750090242183,-490.0,0.0001616,2]
[366154988,1750090242193,-888.04,0.0001616,2]
[366154990,1750090242203,-490.0,0.0001616,2]
[366154992,1750090242213,-3361.78,0.0001616,2]
[366154994,1750090242225,-1284.99,0.0001616,2]
[366154996,1750090242234,-4787.2,0.0001616,2]
[366154998,1750090242244,-846.25,0.0001616,2]
[366155000,1750090242254,-666.31,0.0001616,2]
[366155002,1750090242264,-490.0,0.0001616,2]
[366155004,1750090242275,-490.0,0.0001616,2]
[366155006,1750090242286,-1575.89,0.0001616,2]
[366155008,1750090242296,-1250.23,0.0001616,2]
[366155010,1750090242306,-2418.34,0.0001616,2]
[366155012,1750090242317,-449.20014568,0.0001616,2]
[366155014,1750090242327,-1229.35,0.0001616,2]
[366155016,1750090242337,-490.0,0.0001616,2]
[366155018,1750090242348,-490.0,0.0001616,2]
[366155020,1750090242358,-490.0,0.0001616,2]
[366155023,1750090242369,-490.0,0.0001616,2]
[366155025,1750090242379,-490.0,0.0001616,2]
[366155027,1750090242389,-490.0,0.0001616,2]
[366155029,1750090242399,-274.54110844,0.0001616,2]
[366155031,1750090242409,-1145.65,0.0001616,2]
[366155033,1750090242419,-490.0,0.0001616,2]
[366155035,1750090242429,-490.0,0.0001616,2]
[366155037,1750090242438,-146.64795389,0.0001616,2]
[366155060,1750090242664,-490.0,0.00016158,2]
[366155062,1750090242674,-343.35204611,0.0001616,2]
[366155064,1750090242684,-490.0,0.0001616,2]
[366155066,1750090242694,-490.0,0.0001616,2]
[366155069,1750090242704,-789.79,0.0001616,2]
[366155071,1750090242714,-490.0,0.0001616,2]
[366155073,1750090242723,-2139.81,0.0001616,2]
[366155074,1750090242733,-490.0,0.0001616,2]
[366155076,1750090242743,-490.0,0.0001616,2]
[366155079,1750090242753,-490.0,0.0001616,2]
[366155081,1750090242763,-495.33238363,0.0001616,2]
[366155083,1750090242774,-490.0,0.0001616,2]
[366155085,1750090242784,-490.0,0.0001616,2]
[366155086,1750090242793,-490.0,0.0001616,2]
[366155089,1750090242803,-549.15,0.0001616,2]
[366155091,1750090242813,-490.0,0.0001616,2]
[366155093,1750090242823,-490.0,0.0001616,2]
[366155095,1750090242833,-1099.71,0.0001616,2]
[366155097,1750090242842,-776.37,0.0001616,2]
[366155099,1750090242852,-759.84,0.0001616,2]
[366155101,1750090242863,-490.0,0.0001616,2]
[366155102,1750090242872,-490.0,0.0001616,2]
[366155105,1750090242882,-490.0,0.0001616,2]
[366155106,1750090242892,-490.0,0.0001616,2]
[366155109,1750090242901,-739.34,0.0001616,2]
[366155110,1750090242911,-551.27,0.0001616,2]
[366155113,1750090242921,-627.85262849,0.0001616,2]
[366155115,1750090242930,-1426.85,0.0001616,2]
[366155117,1750090242940,-490.0,0.0001616,2]
[366155118,1750090242950,-490.0,0.0001616,2]
[366155120,1750090242960,-490.0,0.0001616,2]
[366155122,1750090242971,-989.54,0.0001616,2]
[366155125,1750090242982,-490.0,0.0001616,2]
[366155127,1750090242992,-952.69,0.0001616,2]
[366155129,1750090243002,-573.26,0.0001616,2]
[366155132,1750090243012,-12186.65,0.0001616,2]
[366155134,1750090243022,-490.0,0.0001616,2]
[366155136,1750090243032,-490.0,0.0001616,2]
[366155138,1750090243042,-957.96,0.0001616,2]
[366155139,1750090243052,-490.0,0.0001616,2]
[366155141,1750090243062,-678.09,0.0001616,2]
[366155143,1750090243072,-1410.42,0.0001616,2]
[366155145,1750090243082,-568.29,0.0001616,2]
[366155147,1750090243092,-1137.49,0.0001616,2]
[366155150,1750090243102,-505.05,0.0001616,2]
[366155152,1750090243112,-900.5,0.0001616,2]
[366155153,1750090243121,-971.4,0.0001616,2]
[366155155,1750090243133,-1215.7,0.0001616,2]
[366155173,1750090243308,-490.0,0.0001616,2]
[366155177,1750090243330,-561.98,0.0001616,2]
[366155181,1750090243359,-894.74,0.0001616,2]
[366155183,1750090243369,-490.0,0.0001616,2]
[366155185,1750090243379,-313.19813839,0.0001616,2]
[366155187,1750090243389,-711.75,0.0001616,2]
[366155189,1750090243399,-490.0,0.0001616,2]
[366155191,1750090243408,-525.65,0.0001616,2]
[366155193,1750090243418,-490.0,0.0001616,2]
[366155195,1750090243429,-490.0,0.0001616,2]
[366155197,1750090243439,-490.0,0.0001616,2]
[366155199,1750090243448,-490.0,0.0001616,2]
[366155201,1750090243458,-490.0,0.0001616,2]
[366155203,1750090243469,-527.63,0.0001616,2]
[366155205,1750090243479,-5635.22,0.0001616,2]
[366155207,1750090243489,-490.0,0.0001616,2]
[366155209,1750090243499,-692.17,0.0001616,2]
[366155211,1750090243509,-12272.69,0.0001616,2]
[366155213,1750090243520,-200.0,0.0001616,2]
[366155215,1750090243530,-566.47,0.0001616,2]
[366155217,1750090243540,-548.0,0.0001616,2]
[366155219,1750090243550,-1985.16,0.0001616,2]
[366155221,1750090243560,-490.0,0.0001616,2]
[366155223,1750090243569,-490.0,0.0001616,2]
[366155225,1750090243581,-5305.24,0.0001616,2]
[366155227,1750090243590,-988.75,0.0001616,2]
[366155229,1750090243600,-767.72,0.0001616,2]
[366155231,1750090243610,-491.02451642,0.0001616,2]
[366155233,1750090243620,-1691.7,0.0001616,2]
[366155235,1750090243629,-490.0,0.0001616,2]
[366155237,1750090243639,-490.0,0.0001616,2]
[366155239,1750090243649,-2201.88,0.0001616,2]
[366155241,1750090243658,-490.0,0.0001616,2]
[366155243,1750090243668,-490.0,0.0001616,2]
[366155245,1750090243679,-490.0,0.0001616,2]
[366155248,1750090243689,-1135.54,0.0001616,2]
[366155250,1750090243699,-564.16,0.0001616,2]
[366155252,1750090243709,-3742.7,0.0001616,2]
[366155254,1750090243720,-490.0,0.00016161,2]
[366155256,1750090243730,-490.0,0.00016161,2]
[366155258,1750090243741,-490.0,0.00016161,2]
[366155260,1750090243751,-490.0,0.00016161,2]
[366155262,1750090243762,-490.0,0.00016161,2]
[366155264,1750090243772,-490.0,0.00016161,2]
[366155266,1750090243782,-490.0,0.00016161,2]
[366155268,1750090243792,-490.0,0.00016161,2]
[366155270,1750090243802,-377.14236445,0.00016161,2]
[366155272,1750090243812,-490.0,0.00016161,2]
[366155274,1750090243822,-735.38,0.00016161,2]
[366155276,1750090243832,-490.0,0.00016161,2]
[366155279,1750090243843,-543.80454121,0.00016161,2]
[366155281,1750090243853,-490.0,0.00016161,2]
[366155283,1750090243863,-490.0,0.00016161,2]
[366155285,1750090243873,-341.93,0.00016161,2]
[366155287,1750090243883,-490.0,0.00016161,2]
[366155289,1750090243894,-490.0,0.00016161,2]
[366155291,1750090243905,-490.0,0.00016161,2]
[366155293,1750090243916,-491.40294096,0.00016161,2]
[366155295,1750090243926,-490.0,0.00016161,2]
[366155297,1750090243935,-490.0,0.00016161,2]
[366155300,1750090243946,-490.0,0.00016161,2]
[366155302,1750090243955,-490.0,0.00016161,2]
[366155305,1750090243965,-842.83,0.00016161,2]
[366155308,1750090243975,-490.0,0.00016161,2]
[366155310,1750090243985,-490.0,0.00016161,2]
[366155312,1750090243996,-490.0,0.00016161,2]
[366155314,1750090244006,-490.0,0.00016161,2]
[366155316,1750090244016,-490.0,0.00016161,2]
[366155318,1750090244026,-490.0,0.00016161,2]
[366155320,1750090244037,-490.0,0.00016161,2]
[366155322,1750090244047,-492.24241165,0.00016161,2]
[366155324,1750090244057,-490.0,0.00016161,2]
[366155326,1750090244067,-490.0,0.00016161,2]
[366155329,1750090244077,-490.0,0.00016161,2]
[366155331,1750090244087,-490.0,0.00016161,2]
[366155333,1750090244097,-490.0,0.00016161,2]
[366155335,1750090244107,-490.0,0.00016161,2]
[366155337,1750090244117,-490.0,0.00016161,2]
[366155339,1750090244127,-592.05,0.00016161,2]
[366155341,1750090244138,-490.0,0.00016161,2]
[366155343,1750090244150,-490.0,0.00016161,2]
[366155345,1750090244160,-490.0,0.00016161,2]
[366155347,1750090244170,-490.0,0.00016161,2]
[366155349,1750090244180,-494.27317248,0.00016161,2]
[366155351,1750090244191,-497.81721681,0.00016161,2]
[366155353,1750090244201,-490.0,0.00016161,2]
[366155355,1750090244210,-490.0,0.00016161,2]
[366155357,1750090244221,-490.0,0.00016161,2]
[366155359,1750090244233,-490.0,0.00016161,2]
[366155361,1750090244244,-490.0,0.00016161,2]
[366155363,1750090244254,-490.0,0.00016161,2]
[366155365,1750090244264,-490.0,0.00016161,2]
[366155367,1750090244275,-490.0,0.00016161,2]
[366155369,1750090244285,-490.0,0.00016161,2]
[366155371,1750090244295,-490.0,0.00016161,2]
[366155373,1750090244306,-490.0,0.00016161,2]
[366155376,1750090244317,-490.0,0.00016161,2]
[366155378,1750090244327,-490.0,0.00016161,2]
[366155380,1750090244337,-490.0,0.00016161,2]
[366155382,1750090244347,-490.0,0.00016161,2]
[366155384,1750090244357,-490.0,0.00016161,2]
[366155386,1750090244367,-490.0,0.00016161,2]
[366155388,1750090244376,-490.0,0.00016161,2]
[366155390,1750090244386,-490.0,0.00016161,2]
[366155392,1750090244396,-490.0,0.00016161,2]
[366155394,1750090244406,-490.0,0.00016161,2]
[366155396,1750090244415,-490.0,0.00016161,2]
[366155398,1750090244427,-490.0,0.00016161,2]
[366155400,1750090244436,-490.0,0.00016161,2]
[366155402,1750090244446,-457.1824861,0.00016161,2]
[366155404,1750090244456,-490.0,0.00016161,2]
[366155406,1750090244466,-490.0,0.00016161,2]
[366155408,1750090244476,-255.04818678,0.00016161,2]
[366155411,1750090244485,-490.0,0.00016161,2]
[366155413,1750090244495,-1046.12,0.00016161,2]
[366155414,1750090244504,-490.0,0.00016161,2]
[366155417,1750090244514,-490.0,0.00016161,2]
[366155419,1750090244525,-760.06,0.00016161,2]
[366155421,1750090244535,-694.26,0.00016161,2]
[366155423,1750090244544,-490.0,0.00016161,2]
[366155425,1750090244554,-490.0,0.00016161,2]
[366155427,1750090244564,-490.0,0.00016161,2]
[366155429,1750090244575,-1113.86,0.00016161,2]
[366155431,1750090244585,-490.0,0.00016161,2]
[366155433,1750090244595,-405.66006389,0.00016161,2]
[366155435,1750090244605,-490.0,0.00016161,2]
[366155437,1750090244616,-490.0,0.00016161,2]
[366155439,1750090244626,-490.0,0.00016161,2]
[366155441,1750090244636,-490.0,0.00016161,2]
[366155443,1750090244646,-490.0,0.00016161,2]
[366155445,1750090244656,-490.0,0.00016161,2]
[366155447,1750090244666,-490.0,0.00016161,2]
[366155449,1750090244676,-228.65291672,0.00016161,2]
[366155451,1750090244685,-490.0,0.00016161,2]
[366155454,1750090244696,-490.0,0.00016161,2]
[366155456,1750090244705,-490.0,0.00016161,2]
[366155457,1750090244716,-490.0,0.00016161,2]
[366155458,1750090244727,-490.0,0.00016161,2]
[366155459,1750090244738,-490.0,0.00016161,2]
[366155460,1750090244748,-835.24,0.00016161,2]
[366155461,1750090244758,-490.0,0.00016161,2]
[366155462,1750090244768,-490.0,0.00016161,2]
[366155463,1750090244778,-266.63435842,0.00016161,2]
[366155464,1750090244788,-490.0,0.00016161,2]
[366155465,1750090244798,-490.0,0.00016161,2]
[366155466,1750090244808,-764.43,0.00016161,2]
[366155467,1750090244818,-724.74,0.00016161,2]
[366155469,1750090244827,-552.84160552,0.00016161,2]
[366155471,1750090244837,-490.0,0.00016161,2]
[366155473,1750090244847,-490.0,0.00016161,2]
[366155475,1750090244856,-1112.86,0.00016161,2]
[366155477,1750090244867,-490.0,0.00016161,2]
[366155479,1750090244878,-490.0,0.00016161,2]
[366155482,1750090244888,-689.33,0.00016161,2]
[366155484,1750090244898,-490.0,0.00016161,2]
[366155486,1750090244908,-490.0,0.00016161,2]
[366155488,1750090244918,-490.0,0.00016161,2]
[366155490,1750090244928,-472.26315404,0.00016161,2]
[366155492,1750090244938,-1002.9,0.00016161,2]
[366155494,1750090244950,-490.0,0.00016161,2]
[366155496,1750090244959,-490.0,0.00016161,2]
[366155498,1750090244969,-490.0,0.00016161,2]
[366155500,1750090244980,-490.0,0.00016161,2]
[366155502,1750090244990,-490.0,0.00016161,2]
[366155504,1750090245000,-490.0,0.00016161,2]
[366155506,1750090245010,-395.22064564,0.00016161,2]
[366155508,1750090245020,-490.0,0.00016161,2]
[366155510,1750090245031,-401.18606202,0.00016161,2]
[366155512,1750090245040,-490.0,0.00016161,2]
[366155514,1750090245050,-635.5848603,0.00016161,2]
[366155516,1750090245060,-490.0,0.00016161,2]
[366155518,1750090245070,-490.0,0.00016161,2]
[366155520,1750090245080,-490.0,0.00016161,2]
[366155522,1750090245090,-490.0,0.00016161,2]
[366155524,1750090245100,-490.0,0.00016161,2]
[366155526,1750090245110,-490.0,0.00016161,2]
[366155528,1750090245121,-490.0,0.00016161,2]
[366155530,1750090245131,-490.0,0.00016161,2]
[366155533,1750090245143,-913.22,0.00016161,2]
[366155535,1750090245154,-490.0,0.00016161,2]
[366155537,1750090245164,-490.0,0.00016161,2]
[366155539,1750090245174,-490.0,0.00016161,2]
[366155541,1750090245185,-490.0,0.00016161,2]
[366155543,1750090245195,-614.04,0.00016161,2]
[366155545,1750090245205,-490.0,0.00016161,2]
[366155547,1750090245215,-793.49,0.00016161,2]
[366155549,1750090245226,-490.0,0.00016161,2]
[366155551,1750090245236,-490.0,0.00016161,2]
[366155553,1750090245246,-690.68,0.00016161,2]
[366155555,1750090245256,-490.0,0.00016161,2]
[366155557,1750090245266,-490.0,0.00016161,2]
[366155559,1750090245279,-490.0,0.00016161,2]
[366155561,1750090245288,-490.0,0.00016161,2]
[366155563,1750090245299,-490.0,0.00016161,2]
[366155565,1750090245309,-639.14,0.00016161,2]
[366155567,1750090245320,-490.0,0.00016161,2]
[366155569,1750090245329,-490.0,0.00016161,2]
[366155571,1750090245339,-490.0,0.00016161,2]
[366155573,1750090245349,-493.93136747,0.00016161,2]
[366155575,1750090245361,-490.0,0.00016161,2]
[366155577,1750090245371,-490.0,0.00016161,2]
[366155579,1750090245381,-490.0,0.00016161,2]
[366155581,1750090245391,-490.0,0.00016161,2]
[366155583,1750090245401,-490.0,0.00016161,2]
[366155585,1750090245411,-490.0,0.00016161,2]
[366155588,1750090245421,-490.0,0.00016161,2]
[366155590,1750090245431,-490.0,0.00016161,2]
[366155592,1750090245440,-490.0,0.00016161,2]
[366155593,1750090245450,-490.0,0.00016161,2]
[366155596,1750090245460,-490.0,0.00016161,2]
[366155598,1750090245469,-490.0,0.00016161,2]
[366155600,1750090245478,-490.0,0.00016161,2]
[366155602,1750090245488,-150.0,0.00016161,2]
[366155604,1750090245497,-150.0,0.00016161,2]
[366155606,1750090245507,-285.21072972,0.00016161,2]
[366155608,1750090245516,-150.0,0.00016161,2]
[366155610,1750090245527,-151.36736868,0.00016161,2]
[366155612,1750090245537,-150.0,0.00016161,2]
[366155614,1750090245547,-150.0,0.00016161,2]
[366155616,1750090245556,-150.0,0.00016161,2]
[366155618,1750090245566,-150.0,0.00016161,2]
[366155620,1750090245576,-150.0,0.00016161,2]
[366155622,1750090245585,-150.0,0.00016161,2]
[366155656,1750090245927,-158.77517985,0.00016161,2]
[366155662,1750090245964,-500.0,0.00016161,2]
[366155664,1750090245974,-500.0,0.00016161,2]
[366155666,1750090245984,-150.0,0.00016161,2]
[366155668,1750090245994,-150.0,0.00016161,2]
[366155670,1750090246004,-150.0,0.00016161,2]
[366155673,1750090246014,-150.0,0.00016161,2]
[366155674,1750090246025,-150.0,0.00016161,2]
[366155676,1750090246035,-150.0,0.00016161,2]
[366155678,1750090246045,-150.0,0.00016161,2]
[366155681,1750090246055,-150.0,0.00016161,2]
[366155683,1750090246065,-150.0,0.00016161,2]
[366155685,1750090246075,-150.0,0.00016161,2]
[366155687,1750090246085,-150.0,0.00016161,2]
[366155689,1750090246095,-150.0,0.00016161,2]
[366155691,1750090246104,-150.44098988,0.00016161,2]
[366155693,1750090246115,-1000.0,0.00016161,2]
[366155695,1750090246124,-500.0,0.00016161,2]
[366155697,1750090246135,-150.0,0.00016161,2]
[366155698,1750090246147,-150.0,0.00016161,2]
[366155700,1750090246162,-150.0,0.00016161,2]
[366155703,1750090246173,-500.0,0.00016161,2]
[366155705,1750090246183,-150.0,0.00016161,2]
[366155706,1750090246193,-500.0,0.00016161,2]
[366155709,1750090246204,-150.0,0.00016161,2]
[366155711,1750090246214,-150.0,0.00016161,2]
[366155713,1750090246224,-501.17,0.00016161,2]
[366155715,1750090246233,-150.0,0.00016163,2]
[366155717,1750090246243,-1000.0,0.00016164,2]
[366155719,1750090246253,-500.0,0.00016164,2]